lending/lending_fUSD_20240911
["ID","MTS","AMOUNT","RATE_DAILY","PERIOD"]
[337742225,1726017046976,-752.5,0.000129,2]
[337742226,1726017046986,-150.0,0.000129,2]
[337742227,1726017046996,-150.0,0.000129,2]
[337742228,1726017047006,-357.58,0.000129,2]
[337742229,1726017047015,-150.0,0.000129,2]
[337742230,1726017047024,-150.0,0.000129,2]
[337742231,1726017047033,-751.54,0.000129,2]
[337742232,1726017047042,-752.34,0.000129,2]
[337742233,1726017047052,-346.15597547,0.000129,2]
[337742234,1726017047060,-8811.79639875,0.000129,2]
[337742235,1726017047070,-241.94907099,0.000129,2]
[337742236,1726017047079,-151.20243426,0.000129,2]
[337742237,1726017047088,-5354.04665128,0.000129,2]
[337742238,1726017047097,-150.0,0.00012906,2]
[337742239,1726017047106,-1500.0,0.00012954,2]
[337742240,1726017047116,-502.15857757,0.00012973,2]
[337742241,1726017047125,-156.86,0.0001299,2]
[337742242,1726017047134,-5135.859,0.00012997,2]
[337742243,1726017047143,-3744.86106249,0.00013,2]
[337742244,1726017047153,-187838.72094753,0.00013,2]
[337742245,1726017047161,-150.0062735,0.00013,2]
[337742246,1726017047170,-150.0,0.00013,3]
[337742247,1726017047180,-503.04093636,0.00013,3]
[337742248,1726017047189,-378310.81685961,0.00013,2]
[337742274,1726017090613,150.0,0.00019129,120]
[337742275,1726017150559,150.0,0.00024815,120]
[337742276,1726017162368,1050.0,0.00011,2]
[337742277,1726017211318,150.0,0.00018377,120]
[337742278,1726017270612,150.0,0.00020319,120]
[337742279,1726017346339,407.12,0.00010355,2]
[337742280,1726017391015,150.0,0.00017611,120]
[337742281,1726017510858,150.0,0.00022589,120]
[337742289,1726017844588,408.09,0.00010366,2]
[337742290,1726017920061,7600.48874791,9e-05,2]
[337742291,1726017932837,159.04,0.00010959,2]
[337742292,1726017954775,5899.66927416,6.94e-05,2]
[337742309,1726017957636,200.0,0.00010904,30]
[337742310,1726017957691,200.0,0.00010904,30]
[337742311,1726017957743,200.0,0.00010904,30]
[337742312,1726017957799,200.0,0.00010904,30]
[337742313,1726017957854,206.71955616,0.00010904,30]
[337742315,1726018080798,204.62312072,0.0001,2]
[337742319,1726018116360,7046.74658949,0.00010998,2]
[337742320,1726018205154,164.75200768,0.00028,120]
[337742321,1726018207671,151.87457904,0.00028,120]
[337742324,1726018218760,528.87282737,0.00028,120]
[337742331,1726018231667,-250.0,0.00012142,2]
[337742332,1726018231678,-38.27944988,0.00012191,2]
[337742333,1726018231691,-833.72055012,0.00012191,2]
[337742334,1726018231700,-316.67944988,0.00012208,2]
[337742364,1726018238007,-279.53055012,0.00012208,2]
[337742367,1726018238019,-160.0,0.00012214,2]
[337742368,1726018238029,-260.77,0.00012284,2]
[337742369,1726018238040,-150.0,0.00012319,2]
[337742370,1726018238053,-816.0,0.00012488,2]
[337742371,1726018238065,-394.6650931,0.0001263,2]
[337742373,1726018239727,-13.4249069,0.0001263,2]
[337742374,1726018239738,-3766.24,0.00012861,2]
[337742375,1726018239747,-885.0,0.00012869,2]
[337742376,1726018239758,-3000.0,0.0001287,2]
[337742377,1726018239770,-499.99,0.00012899,2]
[337742378,1726018239780,-5831.52,0.00012899,2]
[337742379,1726018239790,-150.0,0.00012899,2]
[337742380,1726018239800,-35308.2152,0.000129,2]
[337742381,1726018239809,-62509.0403,0.000129,2]
[337742382,1726018239819,-150.0,0.000129,2]
[337742383,1726018239829,-752.5,0.000129,2]
[337742384,1726018239838,-150.0,0.000129,2]
[337742385,1726018239848,-188.09,0.000129,2]
[337742386,1726018239858,-150.0,0.000129,2]
[337742387,1726018239867,-150.0,0.000129,2]
[337742388,1726018239876,-752.5,0.000129,2]
[337742389,1726018239886,-357.5,0.000129,2]
[337742390,1726018239896,-752.5,0.000129,2]
[337742391,1726018239905,-150.0,0.000129,2]
[337742392,1726018239915,-752.5,0.000129,2]
[337742393,1726018239924,-150.0,0.000129,2]
[337742394,1726018239934,-752.5,0.000129,2]
[337742395,1726018239944,-184.94666094,0.000129,2]
[337742396,1726018239953,-19999.99,0.000129,2]
[337742397,1726018239963,-13904.13,0.000129,2]
[337742398,1726018239972,-35073.02,0.000129,2]
[337742399,1726018239982,-357.58,0.000129,2]
[337742400,1726018239991,-3569.36443418,0.000129,2]
[337742401,1726018240001,-357.58,0.000129,2]
[337742402,1726018240011,-361.3,0.000129,2]
[337742403,1726018240020,-752.5,0.00012932,2]
[337742404,1726018240030,-752.5,0.00012932,2]
[337742405,1726018240040,-760.07,0.00012932,2]
[337742406,1726018240049,-1065.51857741,0.0001299,2]
[337742407,1726018240062,-502.0,0.00013,2]
[337742408,1726018240071,-15768.72618749,0.00013,2]
[337742409,1726018240085,-3250346.48912824,0.00013,2]
[337742410,1726018240095,-197468.62972079,0.00013,2]
[337742411,1726018240105,-770.63,0.00013,2]
[337742412,1726018240115,-1100.0,0.00013,2]
[337742413,1726018240124,-150.0,0.00013,2]
[337742414,1726018240134,-150.0,0.00013,2]
[337742415,1726018240143,-150.0,0.00013,2]
[337742416,1726018240153,-357.58,0.00013,2]
[337742417,1726018240163,-790.33,0.00013,2]
[337742418,1726018240172,-289.07,0.00013,2]
[337742419,1726018240182,-300.0,0.00013,2]
[337742420,1726018240192,-150.0,0.00013,2]
[337742421,1726018240201,-319109.41770326,0.00013,2]
[337742422,1726018240210,-150.0,0.00013,2]
[337742423,1726018240220,-752.5,0.00013,2]
[337742424,1726018240230,-752.5,0.00013,2]
[337742425,1726018240240,-150.0,0.00013,2]
[337742426,1726018240250,-150.0,0.00013,2]
[337742427,1726018240260,-150.0,0.00013,2]
[337742428,1726018240270,-357.58,0.00013,2]
[337742429,1726018240282,-150.0,0.00013,2]
[337742430,1726018240297,-752.5,0.00013,2]
[337742431,1726018240307,-150.0,0.00013,2]
[337742432,1726018240317,-325.08,0.00013,2]
[337742433,1726018240326,-150.0,0.00013,2]
[337742434,1726018240336,-752.5,0.00013,2]
[337742435,1726018240345,-357.58,0.00013,2]
[337742436,1726018240355,-450691.95802824,0.00013,2]
[337742437,1726018241721,205.01969061,0.00028,120]
[337742441,1726018261204,379.27480908,0.00028,120]
[337742442,1726018268426,338.14801899,0.00028,120]
[337742443,1726018288764,276.14915789,0.00028,120]
[337742444,1726018311942,161.11835532,0.00028,120]
[337742445,1726018317766,159.68664726,0.00028,120]
[337742446,1726018319797,408.69,0.00010366,2]
[337742447,1726018344374,225.92066447,0.00028,120]
[337742448,1726018346745,161.31410085,0.00028,120]
[337742449,1726018351485,271.23982606,0.00028,120]
[337742450,1726018362468,395.52282516,0.00028,120]
[337742451,1726018372121,500.0,0.00028,120]
[337742452,1726018372428,500.0,0.00028,120]
[337742453,1726018373062,320.5553,0.00028,120]
[337742454,1726018379564,587.13979215,0.00028,120]
[337742455,1726018392725,500.0,0.00028,120]
[337742456,1726018393004,174.14183116,0.00028,120]
[337742457,1726018399633,186.85622683,0.00028,120]
[337742458,1726018402591,176.3352223,0.00028,120]
[337742459,1726018406466,547.97314019,0.00028,120]
[337742460,1726018420094,321.3547873,0.00028,120]
[337742461,1726018424414,500.0,0.00028,120]
[337742462,1726018424718,277.96116524,0.00028,120]
[337742463,1726018451082,321.97,0.00010959,2]
[337742464,1726018549508,155.9,0.00011978,2]
[337742465,1726018549743,155.9,0.00011986,2]
[337742466,1726018549981,155.9,0.00011993,2]
[337742467,1726018550187,155.9,0.00012001,2]
[337742468,1726018555142,500.0,0.00012,2]
[337742469,1726018577051,500.0,0.00012,2]
[337742470,1726018596947,904.0,0.00011809,2]
[337742471,1726018654510,163.65,0.00011842,2]
[337742472,1726018693200,608.9,0.00011824,2]
[337742473,1726018727186,200.0,0.00011818,2]
[337742474,1726018736293,250.0,0.00011818,2]
[337742475,1726018761905,169.46,0.00011818,2]
[337742476,1726018762278,168.33,0.00011818,2]
[337742477,1726018772426,172.83383461,0.00028,120]
[337742478,1726018835199,150.0,0.00011821,2]
[337742479,1726018836554,-155.9,0.00012008,2]
[337742480,1726018836577,-395.28,0.00012009,2]
[337742481,1726018836599,-155.9,0.00012016,2]
[337742482,1726018836620,-155.9,0.00012023,2]
[337742483,1726018836642,-155.9,0.00012031,2]
[337742484,1726018836663,-155.9,0.00012038,2]
[337742485,1726018845667,250.0,0.00011957,2]
[337742486,1726018855275,-182.3,0.00012064,2]
[337742488,1726018952995,182.3,0.00011996,2]
[337742489,1726018971428,1050.0,0.00011,2]
[337742490,1726019097983,406.49,0.00010047,2]
[337742491,1726019105134,500.0,0.00028,120]
[337742492,1726019105396,450.70266456,0.00028,120]
[337742493,1726019111409,276.8,0.00011939,2]
[337742494,1726019113831,150.67841198,0.00011688,2]
[337742495,1726019126304,500.0,0.00028,120]
[337742496,1726019126541,500.0,0.00028,120]
[337742497,1726019126807,500.0,0.00028,120]
[337742498,1726019127060,577.9402044,0.00028,120]
[337742499,1726019140961,516.42421487,0.00028,120]
[337742500,1726019197592,522.33714818,0.00028,120]
[337742509,1726019273046,334.2199267,0.00025999,60]
[337742510,1726019344573,250.0,0.00011933,2]
[337742511,1726019348530,-3813.4817135,0.00012005,2]
[337742512,1726019348574,-785.80151976,0.00012005,2]
[337742513,1726019348670,-3813.4817135,0.00012005,2]
[337742514,1726019348722,-3813.4817135,0.00012005,2]
[337742515,1726019348776,-3813.4817135,0.00012005,2]
[337742548,1726019431850,-715.16025866,0.00012005,2]
[337742554,1726019437749,-5573.14207862,0.00012005,2]
[337742555,1726019437894,-179.19928896,0.00012005,2]
[337742556,1726019437903,-2085.72,0.00012083,2]
[337742557,1726019437915,-406.49,0.00012311,2]
[337742558,1726019437924,-191.38,0.00012355,2]
[337742559,1726019437934,-415.42020961,0.00012736,2]
[337742560,1726019437943,-150.0,0.00012767,2]
[337742561,1726019437953,-300.0,0.00012787,2]
[337742562,1726019437964,-1500.0,0.00012788,2]
[337742563,1726019437973,-209.71,0.00012799,2]
[337742564,1726019437982,-150.0,0.00012799,2]
[337742565,1726019437991,-3201.0144,0.000128,2]
[337742566,1726019438001,-223.7959,0.000128,2]
[337742567,1726019438011,-357.58,0.000128,2]
[337742568,1726019438022,-357.58,0.000128,2]
[337742569,1726019438031,-357.58,0.000128,2]
[337742570,1726019438041,-357.58,0.000128,2]
[337742571,1726019438050,-357.58,0.000128,2]
[337742573,1726019438059,-1366.26,0.000128,2]
[337742575,1726019438068,-752.5,0.000128,2]
[337742577,1726019438078,-150.99,0.000128,2]
[337742579,1726019438087,-164.48893901,0.000128,2]
[337742581,1726019438097,-1500.0,0.00012806,2]
[337742583,1726019438107,-499.99,0.00012806,2]
[337742585,1726019438116,-1003.53054811,0.00012836,2]
[337742587,1726019438125,-3813.56,0.00012837,2]
[337742589,1726019438134,-1500.0,0.00012862,2]
[337742590,1726019438143,-2529.80962,0.0001287,2]
[337742593,1726019438153,-2179.0,0.0001287,2]
[337742595,1726019438162,-3692.16,0.00012875,2]
[337742596,1726019438182,-1500.0,0.0001289,2]
[337742598,1726019438191,-179.99,0.00012893,2]
[337742600,1726019438201,-1000.0,0.00012897,2]
[337742602,1726019438210,-12357.64838914,0.00012897,2]
[337742604,1726019438219,-306.606,0.00012899,2]
[337742606,1726019438228,-2905.6029,0.000129,2]
[337742608,1726019438237,-150.0,0.000129,2]
[337742610,1726019438246,-427.66,0.000129,2]
[337742612,1726019438256,-1515.37079014,0.000129,2]
[337742614,1726019438265,-150.0,0.000129,2]
[337742616,1726019438274,-212.64,0.000129,2]
[337742618,1726019438283,-427.66,0.000129,2]
[337742620,1726019438292,-427.66,0.000129,2]
[337742622,1726019438301,-150.0,0.000129,2]
[337742624,1726019438310,-186.036162,0.000129,2]
[337742626,1726019438320,-427.66,0.000129,2]
[337742627,1726019438328,-150.58,0.000129,2]
[337742628,1726019438338,-150.0,0.000129,2]
[337742629,1726019438347,-150.23,0.000129,2]
[337742630,1726019438355,-150.34,0.000129,2]
[337742631,1726019438366,-752.5,0.000129,2]
[337742632,1726019438375,-150.0,0.000129,2]
[337742633,1726019438384,-150.0,0.000129,2]
[337742634,1726019438393,-150.42,0.000129,2]
[337742635,1726019438402,-151.46,0.000129,2]
[337742636,1726019438411,-150.0,0.000129,2]
[337742637,1726019438422,-427.66,0.000129,2]
[337742638,1726019438432,-150.0,0.000129,2]
[337742639,1726019438441,-752.5,0.000129,2]
[337742640,1726019438450,-150.0,0.000129,2]
[337742641,1726019438459,-427.66,0.000129,2]
[337742642,1726019438469,-427.66,0.000129,2]
[337742643,1726019438478,-150.0,0.000129,2]
[337742644,1726019438487,-250255.6100388,0.000129,2]
[337742645,1726019438496,-175.1672746,0.000129,2]
[337742646,1726019438505,-2834.44250901,0.000129,2]
[337742647,1726019438514,-1500.0,0.00012938,2]
[337742648,1726019438523,-507.47459743,0.00012973,2]
[337742649,1726019438532,-164.42,0.0001299,2]
[337742650,1726019438542,-6567.9856177,0.00012997,2]
[337742651,1726019438552,-150.01,0.00012999,2]
[337742652,1726019438562,-597.0,0.00013,2]
[337742653,1726019438571,-15167.42454725,0.00013,2]
[337742654,1726019438581,-156.63446457,0.00013,2]
[337742655,1726019438590,-3706.04,0.00013,2]
[337742656,1726019438599,-519505.99196483,0.00013,2]
[337742659,1726019439718,-24217.39867158,0.00013,2]
[337742661,1726019439796,-90.73039562,0.00013,2]
[337742662,1726019439870,-1076.0,0.00013,2]
[337742663,1726019439881,-2001.34395734,0.00013,2]
[337742664,1726019441617,-208.62,0.00012577,2]
[337742665,1726019441626,-1065.5756662,0.00013,2]
[337742666,1726019441763,-112301.90411632,0.00013,2]
[337742678,1726019442775,-317.58278286,0.00013,2]
[337742680,1726019443941,-8843.39921616,0.00013,2]
[337742681,1726019443953,-2851.5,0.00013,2]
[337742682,1726019443964,-848.76815937,0.00013,2]
[337742683,1726019443976,-10816.61358908,0.00013,2]
[337742684,1726019443988,-326183.56663789,0.00013,2]
[337742685,1726019444000,-571240.3329349,0.00013,2]
[337742686,1726019444011,-1708.71887503,0.00013,2]
[337742687,1726019444284,-8500.0,0.00013,2]
[337742688,1726019444296,-29778.88781335,0.00013,2]
[337742707,1726019445894,-607.47,0.00013,2]
[337742708,1726019446097,-1582.70082265,0.00013,2]
[337742709,1726019446109,-282.92090994,0.00013,2]
[337742710,1726019446120,-268.15001714,0.00013,2]
[337742711,1726019446131,-448.48,0.00013,2]
[337742719,1726019494338,518.91159173,0.00028,120]
[337742721,1726019516158,500.0,0.00028,120]
[337742722,1726019516421,320.3851577,0.00028,120]
[337742723,1726019522179,647.06706925,0.00028,120]
[337742724,1726019524307,501.78704398,0.00028,120]
[337742725,1726019532574,500.0,0.00028,120]
[337742726,1726019532856,452.51639231,0.00028,120]
[337742727,1726019539142,157.54354133,0.00028,120]
[337742728,1726019542297,500.0,0.00028,120]
[337742729,1726019542561,443.38357193,0.00028,120]
[337742730,1726019608558,1752.59,0.00028,120]
[337742731,1726019608849,1752.59,0.00028,120]
[337742732,1726019609109,1752.59,0.00028,120]
[337742733,1726019609713,1752.59,0.00028,120]
[337742734,1726019609871,413.09,0.00010173,2]
[337742735,1726019609984,1752.59,0.00028,120]
[337742736,1726019610310,1752.59,0.00028,120]
[337742737,1726019610581,1752.59,0.00028,120]
[337742738,1726019611014,1752.59,0.00028,120]
[337742739,1726019611119,1752.59,0.00028,120]
[337742740,1726019611382,1752.59,0.00028,120]
[337742741,1726019611750,1752.59,0.00028,120]
[337742742,1726019612002,1752.59,0.00028,120]
[337742743,1726019612277,1752.59,0.00028,120]
[337742744,1726019612579,1752.59,0.00028,120]
[337742745,1726019612836,1752.59,0.00028,120]
[337742746,1726019613109,1752.59,0.00028,120]
[337742747,1726019613368,1752.59,0.00028,120]
[337742748,1726019613625,1752.59,0.00028,120]
[337742749,1726019613871,1752.59,0.00028,120]
[337742750,1726019614142,1752.59,0.00028,120]
[337742751,1726019614441,1752.59,0.00028,120]
[337742752,1726019614716,1752.59,0.00028,120]
[337742753,1726019614985,1752.59,0.00028,120]
[337742754,1726019615283,1752.71546278,0.00028,120]
[337742755,1726019660283,150.95,9.589e-05,2]
[337742756,1726019674537,-3643.73,0.00012048,2]
[337742757,1726019737413,518.4336113,0.00028,120]
[337742758,1726019763747,500.0,0.00028,120]
[337742759,1726019764001,209.33049141,0.00028,120]
[337742760,1726019803898,163.69,0.00011989,2]
[337742761,1726019811027,500.0,0.00028,120]
[337742762,1726019811275,500.0,0.00028,120]
[337742763,1726019811534,283.37632617,0.00028,120]
[337742764,1726019827842,-250.0,0.00012007,2]
[337742765,1726019827864,-250.0,0.00012013,2]
[337742767,1726019888758,250.0,0.0001199,2]
[337742768,1726019954649,-197.38608964,0.00012003,2]
[337742769,1726020024886,-35.71391036,0.00012003,2]
[337742770,1726020024909,-373.83,0.00012011,2]
[337742771,1726020025539,374.9,0.00012011,2]
[337742772,1726020025709,246.59,0.00012011,2]
[337742773,1726020122484,193.4057,0.00028,120]
[337742774,1726020180853,-635.0,0.00012068,2]
[337742775,1726020180874,-3983.54,0.00012069,2]
[337742776,1726020180896,-778.56,0.00012072,2]
[337742777,1726020182753,415.28,0.00010154,2]
[337742778,1726020182975,500.0,0.00028,120]
[337742779,1726020251912,458.1154526,0.00028,120]
[337742780,1726020345754,-1000.0,0.00012036,2]
[337742782,1726020395506,174.72868703,0.00028,120]
[337742788,1726020455624,-233.12,0.00012079,2]
[337742794,1726020631937,-250.0,0.00012075,2]
[337742795,1726020631946,-415.28,0.00012418,2]
[337742796,1726020631956,-98.8793386,0.00012714,2]
[337742797,1726020632125,-3617.4806614,0.00012714,2]
[337742799,1726020632136,-3789.67,0.00012747,2]
[337742801,1726020632146,-1500.0,0.00012759,2]
[337742802,1726020632155,-3762.42,0.00012778,2]
[337742803,1726020632164,-51.74633854,0.00012804,2]
[337742804,1726020632176,-731.21407502,0.00012804,2]
[337742805,1726020632188,-420.816,0.00012804,2]
[337742814,1726020637978,-296.22358644,0.00012804,2]
[337742815,1726020637987,-3691.79,0.00012824,2]
[337742816,1726020637997,-3752.08,0.0001286,2]
[337742817,1726020638007,-1709.37157087,0.0001287,2]
[337742818,1726020638016,-499.99,0.0001287,2]
[337742819,1726020638025,-159.27023,0.0001287,2]
[337742820,1726020638035,-231.27461269,0.0001289,2]
[337742821,1726020638046,-6309.42137716,0.0001289,2]
[337742822,1726020638055,-13280.1739655,0.00012899,2]
[337742823,1726020638064,-150.0,0.00012899,2]
[337742824,1726020638073,-222.4573,0.000129,2]
[337742825,1726020638082,-357.58,0.000129,2]
[337742826,1726020638091,-357.58,0.000129,2]
[337742827,1726020638100,-357.58,0.000129,2]
[337742828,1726020638110,-201.6792,0.000129,2]
[337742829,1726020638119,-357.58,0.000129,2]
[337742830,1726020638128,-357.58,0.000129,2]
[337742831,1726020638137,-357.58,0.000129,2]
[337742832,1726020638146,-357.58,0.000129,2]
[337742833,1726020638156,-357.58,0.000129,2]
[337742834,1726020638164,-357.58,0.000129,2]
[337742835,1726020638174,-357.58,0.000129,2]
[337742836,1726020638183,-357.58,0.000129,2]
[337742837,1726020638194,-427.66,0.000129,2]
[337742838,1726020638203,-150.0,0.000129,2]
[337742839,1726020638214,-357.58,0.000129,2]
[337742840,1726020638224,-150.16,0.000129,2]
[337742841,1726020638234,-2500.0,0.000129,2]
[337742842,1726020638244,-199.59209209,0.000129,2]
[337742843,1726020638257,-487.03368496,0.00012927,2]
[337742844,1726020638269,-306.736,0.00012938,2]
[337742846,1726020638280,-500.0,0.00012973,2]
[337742847,1726020638289,-504.08023296,0.00012973,2]
[337742849,1726020638302,-151.7,0.0001299,2]
[337742851,1726020638313,-6359.5393117,0.00012996,2]
[337742853,1726020638322,-298.1267047,0.00012996,2]
[337742855,1726020638333,-17870.1805606,0.00012996,2]
[337742857,1726020638343,-59872.65175207,0.00012996,2]
[337742859,1726020638356,-955.27057878,0.00012996,2]
[337742861,1726020638367,-491.77976376,0.00012996,2]
[337742863,1726020638378,-365.12765449,0.00012996,2]
[337742912,1726020640370,-58.89733369,0.00012996,2]
[337742922,1726020643014,-55473.32860491,0.00012996,2]
[337742923,1726020643024,-4373.7945151,0.00012996,2]
[337742924,1726020643033,-150.01,0.00012999,2]
[337742925,1726020643042,-3816.75,0.00013,2]
[337742926,1726020643051,-3715.13,0.00013,2]
[337742927,1726020643060,-277318.75124058,0.00013,2]
[337742928,1726020643069,-1100.0,0.00013,2]
[337742929,1726020643078,-357.58,0.00013,2]
[337742930,1726020643087,-1319.37,0.00013,2]
[337742931,1726020643096,-357.58,0.00013,2]
[337742932,1726020643105,-357.62,0.00013,2]
[337742933,1726020643115,-1000.0,0.00013,2]
[337742934,1726020643125,-1000.0,0.00013,2]
[337742935,1726020643134,-1000.0,0.00013,2]
[337742936,1726020643143,-1015.0,0.00013,2]
[337742937,1726020643152,-1000.0,0.00013,2]
[337742938,1726020643161,-1000.0,0.00013,2]
[337742939,1726020643170,-1000.0,0.00013,2]
[337742940,1726020643179,-1000.0,0.00013,2]
[337742941,1726020643187,-1000.0,0.00013,2]
[337742942,1726020643196,-1000.0,0.00013,2]
[337742943,1726020643205,-1000.0,0.00013,2]
[337742944,1726020643215,-1000.0,0.00013,2]
[337742945,1726020643223,-1000.0,0.00013,2]
[337742946,1726020643233,-1000.0,0.00013,2]
[337742947,1726020643242,-1000.0,0.00013,2]
[337742948,1726020643251,-1000.0,0.00013,2]
[337742949,1726020643262,-1000.0,0.00013,2]
[337742950,1726020643271,-1000.0,0.00013,2]
[337742951,1726020643280,-1000.0,0.00013,2]
[337742952,1726020643289,-1000.0,0.00013,2]
[337742953,1726020643298,-1000.0,0.00013,2]
[337742954,1726020643307,-1000.0,0.00013,2]
[337742955,1726020643316,-1000.0,0.00013,2]
[337742956,1726020643325,-1000.0,0.00013,2]
[337742957,1726020643334,-1000.0,0.00013,2]
[337742958,1726020643343,-1000.0,0.00013,2]
[337742959,1726020643352,-1000.0,0.00013,2]
[337742960,1726020643361,-1000.0,0.00013,2]
[337742962,1726020643370,-1000.0,0.00013,2]
[337742964,1726020643380,-1000.0,0.00013,2]
[337742965,1726020643388,-1000.0,0.00013,2]
[337742967,1726020643397,-1000.0,0.00013,2]
[337742969,1726020643406,-1000.0,0.00013,2]
[337742971,1726020643415,-1000.0,0.00013,2]
[337742973,1726020643425,-1000.0,0.00013,2]
[337742975,1726020643434,-1000.0,0.00013,2]
[337742976,1726020643443,-1000.0,0.00013,2]
[337742978,1726020643452,-1000.0,0.00013,2]
[337742980,1726020643461,-1000.0,0.00013,2]
[337742982,1726020643470,-1000.0,0.00013,2]
[337742984,1726020643479,-1000.0,0.00013,2]
[337742986,1726020643488,-1000.0,0.00013,2]
[337742987,1726020643497,-1000.0,0.00013,2]
[337742988,1726020643506,-1000.0,0.00013,2]
[337742989,1726020643515,-1000.0,0.00013,2]
[337742990,1726020643524,-1000.0,0.00013,2]
[337742991,1726020643533,-1000.0,0.00013,2]
[337742992,1726020643542,-1000.0,0.00013,2]
[337742993,1726020643551,-1000.0,0.00013,2]
[337742994,1726020643560,-1000.0,0.00013,2]
[337742995,1726020643569,-1000.0,0.00013,2]
[337742996,1726020643578,-1000.0,0.00013,2]
[337742997,1726020643587,-1000.0,0.00013,2]
[337742998,1726020643597,-1000.0,0.00013,2]
[337742999,1726020643606,-1000.0,0.00013,2]
[337743000,1726020643617,-1000.0,0.00013,2]
[337743001,1726020643626,-550.0,0.00013,2]
[337743002,1726020643636,-357.58,0.00013,2]
[337743003,1726020643645,-431.87,0.00013,2]
[337743004,1726020643655,-357.58,0.00013,2]
[337743005,1726020643664,-752.5,0.00013,2]
[337743006,1726020643674,-251.53,0.00013,2]
[337743007,1726020643683,-28595.62766026,0.00013,2]
[337743008,1726020643693,-257.51435818,0.00013,2]
[337743009,1726020643702,-428.59366786,0.00013,2]
[337743010,1726020643712,-3802.93,0.00013,2]
[337743011,1726020643721,-3739.07,0.00013,2]
[337743012,1726020643731,-3771.48,0.00013,2]
[337743013,1726020643740,-4480.6787785,0.00013051,2]
[337743014,1726020643749,-152.24388797,0.0001306,2]
[337743015,1726020643760,-518.97,0.00013068,2]
[337743016,1726020643769,-20446.0,0.0001307,2]
[337743017,1726020643779,-357.58,0.000131,2]
[337743018,1726020643789,-357.58,0.000131,2]
[337743019,1726020643797,-427.66,0.000131,2]
[337743020,1726020643807,-150.0,0.000131,2]
[337743021,1726020643816,-357.58,0.000131,2]
[337743022,1726020643824,-357.58,0.000131,2]
[337743023,1726020643833,-752.5,0.000131,2]
[337743024,1726020643843,-150.0,0.000131,2]
[337743025,1726020643852,-427.71,0.000131,2]
[337743026,1726020643863,-357.58,0.000131,2]
[337743027,1726020643873,-855.07,0.000131,2]
[337743028,1726020643882,-752.5,0.000131,2]
[337743029,1726020643891,-1000.0,0.000131,2]
[337743030,1726020643900,-226.0,0.000131,2]
[337743031,1726020643909,-357.58,0.000131,2]
[337743032,1726020643919,-357.58,0.000131,2]
[337743033,1726020643928,-359.0,0.000131,2]